bitfinex/quotes_SOLUSD_20241231
["timestamp","ask_amount","ask_price","bid_price","bid_amount"]
[1735604265952,23.776884,191.66,191.6,1.5259]
[1735604267669,20.0,191.63,191.6,1.5259]
[1735604267860,23.776884,191.62,191.54,7.9336]
[1735604271167,2.6086,191.67,191.54,7.9336]
[1735604272074,43.776884,191.66,191.54,7.9336]
[1735604276184,23.776884,191.64,191.54,7.9336]
[1735604276382,23.776884,191.6,191.54,7.9336]
[1735604276679,20.0,191.57,191.54,7.9336]
[1735604277454,20.0,191.57,191.5,6.1685]
[1735604277687,23.776884,191.56,191.5,6.1685]
[1735604280888,20.0,191.53,191.5,6.1685]
[1735604282490,20.0,191.53,191.49,1.6441]
[1735604284386,5.2181,191.64,191.49,1.6441]
[1735604285589,20.0,191.6,191.49,1.6441]
[1735604285794,20.0,191.56,191.49,1.6441]
[1735604288174,2.6096,191.6,191.49,18.03648757]
[1735604288491,23.776884,191.59,191.49,1.6441]
[1735604289292,2.6096,191.6,191.49,1.6441]
[1735604289489,5.2181,191.64,191.49,1.6441]
[1735604289490,20.0,191.66,191.49,18.03648757]
[1735604289997,20.0,191.62,191.49,18.03648757]
[1735604290169,20.0,191.58,191.49,18.03648757]
[1735604290989,7.8259,191.67,191.5,23.23183814]
[1735604291291,7.8259,191.67,191.51,16.39238757]
[1735604291494,43.776884,191.63,191.5,36.28663814]
[1735604293079,2.609,191.65,191.51,17.90458757]
[1735604293291,2.6085,191.68,191.53,6.0564]
[1735604293475,20.0,191.64,191.53,6.0564]
[1735604294302,23.776884,191.63,191.53,6.0564]
[1735604294483,20.0,191.61,191.53,6.0564]
[1735604294790,23.776884,191.6,191.53,6.0564]
[1735604295798,2.6094,191.61,191.53,6.0564]
[1735604296994,2.6091,191.64,191.53,6.0564]
[1735604297492,20.0,191.62,191.53,6.0564]
[1735604299503,23.776884,191.61,191.53,6.0564]
[1735604299798,20.0,191.6,191.53,6.0564]
[1735604301504,26.386584,191.59,191.53,6.0564]
[1735604301699,20.0,191.56,191.53,6.0564]
[1735604302214,20.0,191.58,191.53,6.0564]
[1735604303199,20.0,191.61,191.53,6.0564]
[1735604303506,23.776884,191.61,191.53,6.0564]
[1735604304305,20.0,191.59,191.53,6.0564]
[1735604308208,1.6476,191.7,191.53,6.0564]
[1735604308209,5.2183,191.63,191.53,6.0564]
[1735604308398,20.0,191.59,191.53,6.0564]
[1735604308596,23.776884,191.58,191.53,6.0564]
[1735604309506,2.6099,191.58,191.53,6.0564]
[1735604312515,2.6099,191.58,191.51,1.5122]
[1735604314607,20.0,191.52,191.51,1.5122]
[1735604315515,2.6102,191.56,191.51,1.5122]
[1735604315812,2.6097,191.59,191.51,1.5122]
[1735604316317,20.0,191.54,191.51,1.5122]
[1735604316494,23.776884,191.58,191.51,1.5122]
[1735604316897,20.0,191.56,191.51,1.5122]
[1735604318421,26.387084,191.55,191.51,1.5122]
[1735604321098,20.0,191.52,191.51,1.5122]
[1735604321425,23.776884,191.51,191.46,1.5535]
[1735604321718,26.387684,191.51,191.46,1.5535]
[1735604321920,20.0,191.48,191.46,1.5535]
[1735604322323,20.0,191.48,191.45,6.6209]
[1735604322823,23.776884,191.47,191.42,6.6209]
[1735604323906,2.6113,191.48,191.42,6.6209]
[1735604324902,20.0,191.48,191.42,6.6209]
[1735604326814,2.6108,191.51,191.42,6.6209]
[1735604327333,23.776884,191.5,191.42,6.6209]
[1735604329820,20.0,191.47,191.42,6.6209]
[1735604332551,82.7,191.58,191.42,6.6209]
[1735604332752,2.61,191.57,191.42,6.6209]
[1735604332955,20.0,191.51,191.42,6.6209]
[1735604333147,20.0,191.49,191.42,6.6209]
[1735604335364,23.776884,191.48,191.42,6.6209]
[1735604338868,23.776884,191.48,191.41,1.5535]
[1735604338869,20.0,191.45,191.41,1.5535]
[1735604340862,23.776884,191.44,191.41,1.5535]
[1735604341047,26.388584,191.44,191.37,8.016]
[1735604341559,23.776884,191.4,191.37,1.5475]
[1735604341750,20.0,191.37,191.33,6.4685]
[1735604343050,3.93293625,191.5,191.33,6.4685]
[1735604343280,2.6112,191.48,191.33,6.4685]
[1735604343593,23.776884,191.47,191.33,6.4685]
[1735604343750,23.776884,191.43,191.33,6.4685]
[1735604343956,20.0,191.4,191.33,6.4685]
[1735604344161,23.776884,191.39,191.33,6.4685]
[1735604345269,20.0,191.36,191.33,6.4685]
[1735604346566,23.776884,191.35,191.32,1.5475]
[1735604347065,1.5948,191.43,191.2,1.5979]
[1735604347066,43.776884,191.32,191.2,1.5979]
[1735604349365,46.390384,191.32,191.2,1.5979]
[1735604353782,22.6135,191.32,191.2,1.5979]
[1735604354091,1.5948,191.41,191.26,16.4456435]
[1735604354394,20.0,191.4,191.24,24.4707435]
[1735604354767,23.776884,191.35,191.25,16.4456435]
[1735604354968,23.776884,191.35,191.24,25.25480289]
[1735604355570,23.776884,191.35,191.25,16.4456435]
[1735604356106,23.776884,191.35,191.24,25.25480289]
[1735604357270,2.612,191.42,191.25,23.776884]
[1735604357475,2.612,191.42,191.29,6.4272]
[1735604357790,2.612,191.42,191.3,1.5979]
[1735604358274,20.0,191.38,191.3,1.5979]
[1735604358891,20.0,191.42,191.3,1.5979]
[1735604359280,2.6116,191.45,191.3,18.0435435]
[1735604359682,23.776884,191.44,191.3,18.0435435]
[1735604359887,20.0,191.41,191.3,18.0435435]
[1735604360200,23.776884,191.44,191.3,18.0435435]
[1735604360381,24.220244,191.49,191.3,18.0435435]
[1735604360382,20.0,191.41,191.3,18.0435435]
[1735604361279,20.0,191.41,191.3,1.5979]
[1735604361694,43.776884,191.41,191.3,18.0435435]
[1735604361999,5.2224,191.48,191.3,18.0435435]
[1735604362188,262.19200288,191.6,191.25,23.776884]
[1735604362189,22.6116,191.45,191.34,1.548]
[1735604362385,20.0,191.45,191.34,17.9936435]
[1735604362786,20.0,191.47,191.34,17.9936435]
[1735604362992,20.0,191.47,191.36,6.1238]
[1735604363190,2.6111,191.49,191.36,22.5694435]
[1735604363387,2.6102,191.55,191.37,17.9936435]
[1735604363572,20.0,191.53,191.37,17.9936435]
[1735604363778,20.0,191.53,191.37,18.77712888]
[1735604363990,23.776884,191.52,191.37,18.77712888]
[1735604364210,2.6102,191.55,191.39,16.4456435]
[1735604364380,20.0,191.53,191.39,16.4456435]
[1735604364678,2.6102,191.55,191.39,16.4456435]
[1735604364877,2.6106,191.52,191.37,2.33148538]
[1735604365079,22.6106,191.52,191.37,2.33153548]
[1735604365273,22.6106,191.52,191.38,16.4456435]
[1735604367202,2.6106,191.52,191.37,18.77717898]
[1735604367902,20.0,191.51,191.37,18.77717898]
[1735604368988,20.0,191.46,191.37,1.548]
[1735604372705,23.776884,191.45,191.37,1.548]
[1735604373002,20.0,191.42,191.37,1.548]
[1735604380113,23.776884,191.41,191.37,1.548]
[1735604382321,20.0,191.47,191.37,1.548]
[1735604382617,2.6116,191.45,191.37,1.548]
[1735604382821,20.0,191.41,191.37,1.548]
[1735604385841,20.0,191.47,191.37,1.548]
[1735604386204,20.0,191.43,191.37,1.548]
[1735604386711,23.776884,191.42,191.37,1.548]
[1735604387518,20.0,191.39,191.37,1.548]
[1735604389241,20.0,191.39,191.29,1.5917]
[1735604389615,20.0,191.39,191.3,22.7959435]
[1735604391823,20.0,191.39,191.3,6.3503]
[1735604396040,20.0,191.39,191.3,16.87432547]
[1735604397656,20.0,191.39,191.3,6.3503]
[1735604398857,20.0,191.39,191.3,16.87432547]
[1735604399455,20.0,191.39,191.3,6.3503]
[1735604399655,23.776884,191.38,191.3,6.3503]
[1735604400454,20.0,191.35,191.3,6.3503]
[1735604400635,20.0,191.35,191.25,0.78387956]
[1735604400636,20.0,191.35,191.25,7.942]
[1735604401262,23.776884,191.34,191.25,7.942]
[1735604402053,4.1988,191.39,191.26,10.52402547]
[1735604402466,23.776884,191.38,191.25,19.25008885]
[1735604402961,20.0,191.35,191.25,19.25008885]
[1735604403538,20.0,191.35,191.26,10.52402547]
[1735604404659,6.6219,191.43,191.26,10.52402547]
[1735604404845,2.612,191.42,191.3,10.52402547]
[1735604405158,3.93239532,191.46,191.37,10.52402547]
[1735604405459,9.71919437,191.5,191.38,10.52402547]
[1735604405668,8.16739437,191.5,191.4,6.5454]
[1735604406244,20.0,191.47,191.4,6.5454]
[1735604406447,20.0,191.5,191.4,6.5454]
[1735604406746,8.8015,191.53,191.4,6.5454]
[1735604406947,20.0,191.5,191.4,6.5454]
[1735604407373,23.776884,191.49,191.4,6.5454]
[1735604407669,20.0,191.49,191.39,1.6179]
[1735604408457,20.0,191.49,191.36,6.5454]
[1735604408857,20.0,191.44,191.34,1.6179]
[1735604409167,20.0,191.4,191.34,1.6179]
[1735604409670,20.0,191.4,191.32,6.5454]
[1735604410072,20.0,191.36,191.32,6.5454]
[1735604412768,20.0,191.36,191.29,1.6179]
[1735604414258,20.0,191.41,191.29,18.82825491]
[1735604414452,20.0,191.41,191.3,16.42647117]
[1735604414654,20.0,191.37,191.29,2.40178374]
[1735604414865,2.6119,191.43,191.3,16.42647117]
[1735604415068,23.776884,191.42,191.3,16.42647117]
[1735604415469,20.0,191.39,191.31,17.21027191]
[1735604415671,23.776884,191.42,191.32,16.42647117]
[1735604416253,23.776884,191.42,191.31,0.78380074]
[1735604416453,23.776884,191.42,191.3,16.42647117]
[1735604419586,20.0,191.39,191.29,18.82813969]
[1735604420876,20.0,191.39,191.31,16.42647117]
[1735604421065,20.0,191.39,191.31,17.210217]
[1735604421581,2.6115,191.46,191.33,16.42647117]
[1735604421780,12.09978567,191.48,191.36,16.42647117]
[1735604422086,20.0,191.44,191.36,16.42647117]
[1735604422375,2.6111,191.49,191.35,16.42647117]
[1735604422584,2.6111,191.49,191.37,0.78356355]
[1735604422774,23.776884,191.48,191.35,17.2100029]
[1735604423980,22.6111,191.49,191.37,16.42647117]
[1735604424301,20.0,191.49,191.38,17.20994547]
[1735604424987,23.776884,191.48,191.38,0.7834743]
[1735604425187,23.776884,191.48,191.37,16.42647117]
[1735604425356,20.0,191.5,191.38,17.21006901]
[1735604425776,23.776884,191.5,191.4,16.42647117]
[1735604426069,20.0,191.5,191.39,36.42647117]
[1735604426273,20.0,191.5,191.41,0.78341253]
[1735604426880,20.0,191.52,191.41,0.78341253]
[1735604427577,43.776884,191.53,191.41,0.78341253]
[1735604427884,23.776884,191.51,191.39,20.0]
[1735604428182,23.776884,191.51,191.39,20.78346773]
[1735604428960,23.776884,191.51,191.4,1.6071]
[1735604429882,2.6106,191.52,191.4,1.6071]
[1735604430383,20.0,191.51,191.41,6.3141]
[1735604430563,20.0,191.51,191.42,16.42647117]
[1735604430768,20.0,191.51,191.43,16.42647117]
[1735604430981,20.0,191.51,191.42,16.42647117]
[1735604431175,20.0,191.51,191.41,23.52396151]
[1735604431807,23.776884,191.52,191.41,23.52396151]
[1735604431966,20.0,191.49,191.41,6.3141]
[1735604433278,23.776884,191.48,191.41,6.3141]
[1735604435292,20.0,191.45,191.41,6.3141]
[1735604436716,23.776884,191.48,191.41,6.3141]
[1735604437010,10.77799437,191.53,191.41,6.3141]
[1735604437176,10.77799437,191.53,191.41,22.74057117]
[1735604437375,16.33478874,191.55,191.41,22.74057117]
[1735604437376,8.16739437,191.55,191.42,17.20984213]
[1735604437607,8.16739437,191.55,191.43,16.42647117]
[1735604437811,20.0,191.51,191.44,0.78327905]
[1735604438109,23.776884,191.54,191.44,0.78327905]
[1735604438415,20.0,191.55,191.44,0.78327905]
[1735604438715,23.776884,191.54,191.44,0.78327905]
[1735604438889,20.0,191.55,191.44,0.78327905]
[1735604439831,23.776884,191.54,191.42,17.20977207]
[1735604440187,23.776884,191.52,191.42,0.7833009]
[1735604441311,23.776884,191.52,191.41,6.3141]
[1735604442719,1.6405,191.57,191.42,17.20987958]
[1735604442931,20.0,191.55,191.43,16.42647117]
[1735604443289,23.776884,191.54,191.42,17.20987958]
[1735604443490,23.776884,191.54,191.44,16.42647117]
[1735604443696,2.6101,191.56,191.45,2.31529079]
[1735604443897,2.6101,191.56,191.45,18.74176196]
[1735604444620,23.776884,191.55,191.45,18.74176196]
[1735604444918,2.6097,191.59,191.46,22.84007117]
[1735604445092,23.776884,191.58,191.47,0.78308841]
[1735604445284,20.0,191.56,191.47,0.78308841]
[1735604445495,23.776884,191.58,191.47,0.78308841]
[1735604446222,5.2187,191.62,191.47,0.78308841]
[1735604446409,20.0,191.59,191.47,0.78308841]
[1735604447225,23.776884,191.58,191.47,0.78308841]
[1735604448016,2.61,191.57,191.46,6.4136]
[1735604448230,23.776884,191.56,191.46,6.4136]
[1735604448730,20.0,191.53,191.46,6.4136]
[1735604463299,23.776884,191.51,191.46,6.4136]
[1735604463516,23.776884,191.51,191.45,1.5321]
[1735604466915,2.6106,191.52,191.45,1.5321]
[1735604467109,5.22,191.57,191.45,1.5321]
[1735604467110,2.6102,191.56,191.45,1.5321]
[1735604467430,20.0,191.52,191.45,12.82361104]
[1735604468532,20.0,191.52,191.45,2.31531821]
[1735604469231,20.0,191.52,191.45,12.82361104]
[1735604470733,2.6098,191.59,191.46,16.86959283]
[1735604470922,2.6098,191.59,191.49,10.50829283]
[1735604471231,2.6098,191.59,191.51,1.5976]
[1735604471433,22.6098,191.59,191.51,1.5976]
[1735604471611,2.6098,191.59,191.51,1.5976]
[1735604472138,22.6098,191.59,191.51,1.5976]
[1735604472733,20.0,191.58,191.52,6.3613]
[1735604473823,2.6098,191.59,191.52,6.3613]
[1735604474424,22.6098,191.59,191.52,6.3613]
[1735604475040,20.0,191.59,191.52,16.86959283]
[1735604475344,20.0,191.59,191.52,6.3613]
[1735604477248,23.776884,191.58,191.52,6.3613]
[1735604477923,20.0,191.58,191.52,6.3613]
[1735604478451,20.0,191.58,191.51,1.5976]
[1735604479250,23.776884,191.56,191.51,1.5976]
[1735604480041,20.0,191.53,191.51,1.5976]
[1735604483654,20.0,191.53,191.47,7.902]
[1735604484359,23.776884,191.52,191.47,7.902]
[1735604484555,20.0,191.49,191.47,1.5407]
[1735604484750,20.0,191.49,191.43,7.9598]
[1735604485849,10.77749437,191.56,191.43,7.9598]
[1735604486148,10.77749437,191.56,191.44,0.78335207]
[1735604486352,20.0,191.53,191.44,0.78335207]
[1735604486654,20.0,191.53,191.43,8.74309745]
[1735604487032,20.0,191.52,191.43,8.74309745]
[1735604487242,20.0,191.53,191.43,8.74309745]
[1735604487956,20.0,191.53,191.44,10.50829283]
[1735604488148,20.0,191.53,191.45,0.78316827]
[1735604488952,20.0,191.53,191.44,10.50829283]
[1735604489153,20.0,191.53,191.43,18.46809283]
[1735604490150,20.0,191.53,191.43,7.9598]
[1735604492063,23.776884,191.52,191.43,7.9598]
[1735604492561,20.0,191.49,191.43,7.9598]
[1735604495040,20.0,191.45,191.38,7.8561]
[1735604496262,2.6109,191.5,191.39,10.50829283]
[1735604496641,20.0,191.46,191.38,19.14795184]
[1735604497862,20.0,191.46,191.38,8.63965901]
[1735604498044,20.0,191.46,191.38,7.8561]
[1735604498571,17.31862889,191.53,191.34,1.5357]
[1735604498572,20.0,191.42,191.34,1.5357]
[1735604499873,20.0,191.38,191.34,1.5357]
[1735604509376,20.0,191.38,191.29,8.1799]
[1735604510281,20.0,191.38,191.31,16.44340232]
[1735604510451,2.6116,191.46,191.32,16.44340232]
[1735604510654,20.0,191.45,191.33,16.44340232]
[1735604511171,20.0,191.41,191.32,16.44340232]
[1735604511356,20.0,191.41,191.33,1.6041]
[1735604511550,23.776884,191.45,191.33,18.04750232]
[1735604512881,20.0,191.43,191.34,16.44340232]
[1735604513089,2.611,191.5,191.37,16.44340232]
[1735604513273,2.611,191.5,191.38,1.6041]
[1735604513464,6.5447,191.56,191.39,23.57729704]
[1735604513465,2.6105,191.53,191.39,23.57729704]
[1735604514094,23.776884,191.52,191.39,23.57729704]
[1735604514273,2.6105,191.53,191.39,23.57729704]
[1735604514596,22.6105,191.53,191.39,23.57729704]
[1735604516282,20.0,191.49,191.39,23.57729704]
[1735604518161,20.0,191.49,191.39,7.13389472]
[1735604519063,20.0,191.49,191.39,6.3504]
[1735604520887,23.776884,191.48,191.39,6.3504]
[1735604521074,2.611,191.5,191.39,6.3504]
[1735604521385,22.6106,191.53,191.41,10.51613263]
[1735604521593,22.6106,191.53,191.42,10.51613263]
[1735604522092,20.0,191.49,191.41,10.51613263]
[1735604522275,20.0,191.49,191.42,0.78334407]
[1735604523186,20.0,191.49,191.42,11.2994767]
[1735604523596,20.0,191.49,191.4,12.90356889]
[1735604523804,20.0,191.49,191.4,2.38743626]
[1735604524094,20.0,191.49,191.41,10.51613263]
[1735604524589,20.0,191.49,191.4,12.90356889]
[1735604525390,20.0,191.49,191.4,2.38743626]
[1735604526592,20.0,191.45,191.4,1.6041]
[1735604527969,31.607184,191.56,191.4,1.6041]
[1735604528194,20.0,191.49,191.4,1.6041]
[1735604528376,20.0,191.53,191.4,1.6041]
[1735604528882,20.0,191.49,191.4,1.6041]
[1735604531811,2.6103,191.55,191.4,12.12023263]
[1735604532115,3.93057639,191.56,191.44,10.51613263]
[1735604532408,3.93057639,191.56,191.47,6.2105]
[1735604532603,8.19194217,191.57,191.47,6.2105]
[1735604532803,23.776884,191.57,191.47,6.2105]
[1735604533208,20.0,191.54,191.47,6.2105]
[1735604534101,22.6098,191.58,191.47,6.2105]
[1735604534281,20.0,191.58,191.47,17.50977172]
[1735604534480,20.0,191.58,191.47,6.99363909]
[1735604537512,20.0,191.58,191.47,17.50977172]
[1735604537682,8.19194217,191.63,191.5,6.2105]
[1735604537981,8.19194217,191.63,191.5,17.50958989]
[1735604538184,20.0,191.59,191.5,17.50958989]
[1735604538484,23.776884,191.62,191.5,17.50958989]
[1735604538684,23.776884,191.63,191.5,17.50958989]
[1735604539319,20.0,191.6,191.5,17.50958989]
[1735604540183,20.0,191.6,191.51,12.15583263]
[1735604540390,10.80054217,191.67,191.53,42.08321663]
[1735604540725,20.0,191.64,191.56,12.15583263]
[1735604540898,20.0,191.64,191.56,12.93856863]
[1735604541094,23.776884,191.68,191.56,12.93856863]
[1735604541295,23.776884,191.68,191.56,2.422436]
[1735604541518,20.0,191.65,191.56,1.6397]
[1735604542315,23.776884,191.64,191.56,1.6397]
[1735604543921,23.776884,191.62,191.56,1.6397]
[1735604545205,20.0,191.59,191.56,1.6397]
[1735604547530,20.0,191.55,191.51,1.6397]
[1735604548129,20.0,191.59,191.51,1.6397]
[1735604548356,20.0,191.55,191.51,1.6397]
[1735604549227,23.776884,191.54,191.49,6.1505]
[1735604553840,20.0,191.51,191.49,6.1505]
[1735604554251,20.0,191.51,191.47,1.6397]
[1735604554618,23.776884,191.5,191.47,1.6397]
[1735604554952,23.776884,191.5,191.45,6.0244]
[1735604555247,20.0,191.48,191.45,6.0244]
[1735604559592,20.0,191.48,191.42,1.5947]
[1735604559798,20.0,191.44,191.42,1.5947]
[1735604564396,20.0,191.44,191.4,6.0244]
[1735604568206,20.0,191.44,191.38,1.5947]
[1735604572400,23.776884,191.43,191.38,1.5947]
[1735604572598,20.0,191.4,191.38,1.5947]
[1735604573101,2.6109,191.5,191.38,1.5947]
[1735604573799,23.776884,191.49,191.38,1.5947]
[1735604574304,20.0,191.46,191.38,1.5947]
[1735604574519,23.776884,191.45,191.38,1.5947]
[1735604574698,20.0,191.42,191.38,1.5947]
[1735604577621,20.0,191.42,191.35,6.0244]
[1735604582323,20.0,191.42,191.34,1.6433]
[1735604582324,20.0,191.38,191.34,1.6433]
[1735604582487,20.0,191.38,191.3,6.3135]
[1735604582689,20.0,191.34,191.3,7.9568]
[1735604584223,23.776884,191.33,191.3,1.6433]
[1735604584704,2.6128,191.36,191.3,1.6433]
[1735604585299,23.776884,191.35,191.3,1.6433]
[1735604585512,20.0,191.32,191.3,1.6433]
[1735604586032,2.6119,191.43,191.3,1.6433]
[1735604586899,2.6119,191.43,191.3,12.16134235]
[1735604587098,5.2226,191.48,191.32,10.51804235]
[1735604587099,2.6115,191.46,191.32,10.51804235]
[1735604587419,22.6115,191.46,191.33,10.51804235]
[1735604587621,2.6115,191.46,191.32,10.51804235]
[1735604588117,22.6115,191.46,191.32,10.51804235]
[1735604588297,23.776884,191.45,191.32,10.51804235]
[1735604588617,20.0,191.42,191.31,6.5138]
[1735604588811,23.776884,191.41,191.31,6.5138]
[1735604589021,20.0,191.42,191.31,6.5138]
[1735604589196,2.6119,191.44,191.31,6.5138]
[1735604589596,2.6119,191.44,191.31,17.03184235]
[1735604589822,20.0,191.45,191.33,10.51804235]
[1735604590133,20.0,191.46,191.33,10.51804235]
[1735604590296,20.0,191.44,191.32,10.51804235]
[1735604590494,20.0,191.44,191.33,10.51804235]
[1735604590729,20.0,191.44,191.32,10.51804235]
[1735604591326,2.6113,191.47,191.32,10.51804235]
[1735604591511,20.0,191.46,191.33,11.3017859]
[1735604592527,20.0,191.46,191.33,0.78374355]
[1735604592725,20.0,191.46,191.34,10.51804235]
[1735604593629,20.0,191.44,191.33,10.51804235]
[1735604593797,20.0,191.44,191.32,10.51804235]
[1735604593997,20.0,191.42,191.31,17.03184235]
[1735604594306,20.0,191.38,191.31,6.5138]
[1735604595114,23.776884,191.37,191.31,6.5138]
[1735604597800,3.93278944,191.47,191.31,6.5138]
[1735604598008,2.6115,191.46,191.31,6.5138]
[1735604598526,23.776884,191.41,191.31,6.5138]
[1735604598898,20.0,191.38,191.31,6.5138]
[1735604600305,2.6112,191.48,191.34,16.45113891]
[1735604600709,20.0,191.46,191.34,16.45113891]
[1735604600909,20.0,191.42,191.34,16.45113891]
[1735604601138,2.6112,191.48,191.34,20.0]
[1735604601305,2.6112,191.48,191.35,16.45113891]
[1735604601506,20.0,191.44,191.34,16.45113891]
[1735604601721,23.776884,191.43,191.34,20.0]
[1735604602137,23.776884,191.43,191.32,16.45113891]
[1735604602437,23.776884,191.43,191.31,22.96493891]
[1735604603910,20.0,191.47,191.33,16.45113891]
[1735604604309,20.0,191.43,191.33,16.45113891]
[1735604605243,2.6112,191.48,191.34,16.45113891]
[1735604605444,2.6112,191.48,191.35,16.45113891]
[1735604605631,2.6112,191.48,191.36,1.5662]
[1735604605632,22.6112,191.48,191.36,1.5662]
[1735604606337,20.0,191.44,191.36,1.5662]
[1735604614246,20.0,191.41,191.36,1.5662]
[1735604614451,2.6112,191.48,191.36,1.5662]
[1735604614836,20.0,191.44,191.36,1.5662]
[1735604615458,10.80274217,191.51,191.37,22.67533891]
[1735604615665,20.0,191.48,191.37,22.67533891]
[1735604615953,20.0,191.47,191.37,22.67533891]
[1735604616256,20.0,191.47,191.37,16.7404124]
[1735604616449,20.0,191.49,191.37,16.7404124]
[1735604616660,20.0,191.49,191.37,6.2242]
[1735604617020,23.776884,191.49,191.37,16.7404124]
[1735604617326,20.0,191.48,191.37,16.7404124]
[1735604618624,20.0,191.48,191.38,10.5162124]
[1735604618848,2.6108,191.51,191.39,10.5162124]
[1735604619057,20.0,191.5,191.39,10.5162124]
[1735604619232,20.0,191.5,191.4,10.5162124]
[1735604619626,22.6108,191.51,191.4,10.5162124]
[1735604619837,22.6108,191.51,191.38,0.78357872]
[1735604620039,22.6108,191.51,191.38,11.29979112]
[1735604620334,22.6108,191.51,191.39,10.5162124]
[1735604622359,22.6108,191.51,191.38,0.78357872]
[1735604622534,22.6108,191.51,191.38,11.29979112]
[1735604622929,2.6108,191.51,191.38,11.29979112]
[1735604623130,2.6108,191.51,191.39,10.5162124]
[1735604623533,2.6108,191.51,191.4,1.6574]
[1735604626760,2.6108,191.51,191.4,21.6574]
[1735604627563,23.776884,191.5,191.4,1.6574]
[1735604628156,23.776884,191.46,191.37,6.2242]
[1735604628661,23.776884,191.48,191.37,6.2242]
[1735604629038,20.0,191.46,191.37,6.2242]
[1735604629359,22.6115,191.46,191.37,6.2242]
[1735604629573,23.776884,191.44,191.37,6.2242]
[1735604630553,2.6115,191.46,191.37,6.2242]
[1735604630787,23.776884,191.44,191.37,6.2242]
[1735604630959,2.6115,191.46,191.37,6.2242]
[1735604631166,23.776884,191.44,191.37,6.2242]
[1735604636663,2.6111,191.49,191.37,6.2242]
[1735604636869,8.19194217,191.51,191.37,16.7404124]
[1735604636870,9.65407293,191.51,191.37,16.7404124]
[1735604637468,43.776884,191.48,191.37,16.7404124]
[1735604637767,43.776884,191.48,191.37,6.2242]
[1735604638260,23.776884,191.53,191.37,6.2242]
[1735604638439,23.776884,191.51,191.37,6.2242]
[1735604638766,20.0,191.48,191.37,6.2242]
[1735604644575,23.776884,191.47,191.37,6.2242]
[1735604645075,23.776884,191.43,191.37,6.2242]
[1735604645654,20.0,191.42,191.37,6.2242]
[1735604646643,26.388584,191.45,191.37,6.2242]
[1735604646849,20.0,191.45,191.37,6.2242]
[1735604647175,43.776884,191.45,191.37,6.2242]
[1735604647357,20.0,191.45,191.37,6.2242]
[1735604647755,23.776884,191.42,191.37,6.2242]
[1735604648480,2.6118,191.44,191.37,6.2242]
[1735604648679,20.0,191.45,191.37,6.2242]
[1735604648973,12.12379992,191.49,191.37,6.2242]
[1735604649180,20.0,191.46,191.37,6.2242]
[1735604649698,23.776884,191.49,191.37,6.2242]
[1735604651398,20.0,191.46,191.37,6.2242]
[1735604651788,23.776884,191.49,191.37,6.2242]
[1735604653193,23.776884,191.49,191.37,16.7404124]
[1735604654882,2.6105,191.53,191.39,10.5162124]
[1735604655197,2.6105,191.53,191.41,1.6591]
[1735604655389,20.0,191.49,191.41,1.6591]
[1735604670014,20.0,191.52,191.41,1.6591]
[1735604670617,22.6105,191.53,191.41,1.6591]
[1735604671413,2.6105,191.53,191.41,1.6591]
[1735604672193,20.0,191.51,191.41,1.6591]
[1735604673791,20.0,191.47,191.41,1.6591]
[1735604676516,20.0,191.43,191.41,1.6591]
[1735604676688,20.0,191.43,191.4,6.4609]
[1735604676894,20.0,191.43,191.36,1.5537]
[1735604677421,23.776884,191.42,191.36,1.5537]